{"text_format":"3","workbook":"xlsx","n_sheets":1,"sheets":["招聘计划信息表"],"not_rendered":{"external_links":1,"defined_names":3},"read":"whole","date_system":"1900"}

{"sheet":"招聘计划信息表","index":0,"n_rows":38,"n_cols":27,"rows_kept":38,"merged":[[1,0,1,25],[2,0,4,0],[2,1,4,1],[2,2,4,2],[2,3,2,25],[2,26,4,26],[3,3,3,4],[3,5,3,6],[3,7,3,8],[3,9,3,10],[3,11,3,12],[3,13,3,14],[3,15,3,16],[3,17,3,18],[3,19,3,20],[3,21,3,22],[3,23,3,24],[3,25,4,25]]}
["附件一"]
["大东区教育系统幼儿园编外人员招聘计划信息表"]
["招聘岗位","岗位\n编号","具体岗位招录条件","招聘人数及转正工资",{"$nulls":22},"其他条件"]
[{"$nulls":3},"01东嘉幼儿园嘉美分园",null,"02东育幼儿园",null,"03东越幼儿园",null,"04二0五幼儿园新东分园",null,"05富力幼儿园东宸府分园",null,"06和苑幼儿园",null,"07和苑幼儿园国瑞分园",null,"08静美幼儿园津桥分园",null,"09望花一幼儿园",null,"10教育局幼儿园压力表厂二期",null,"11教育局幼儿园半山麓分园",null,"小计"]
[{"$nulls":3},"人数","转正工资","人数","转正工资","人数","转正工资","人数","转正工资","人数","转正工资","人数","转正工资","人数","转正工资","人数","转正工资","人数","转正工资","人数","转正工资","人数","转正工资"]
["幼儿教师",{"$f":"VLOOKUP(A6,[1]目录!$B$2:$E$22,4,)","v":1},"全日制本科及以上学历，教育学学士，学前教育专业，具有幼儿园教师资格证、普通话考试等级证书（二级甲等或以上等级证书）。",{"$nulls":16},2,"3500-4500",{"$nulls":4},{"$f":"D6+T6+X6+F6+H6+J6+L6+N6+P6+V6+R6","v":2},"树立正确的儿童观、教育观，热爱儿童，尊重儿童；具有幼儿园学前教育课程教学和班级管理能力，因材施教；善于与家长沟通，具有良好的职业道德规范。"]
["幼儿教师",{"$f":"VLOOKUP(A7,[1]目录!$B$2:$E$22,4,)","v":1},"全日制大专及以上学历，学前教育专业，35周岁及以下（1987年9月9日及以后出生），身高1.58以上，具有幼儿园教师资格证，普通话考试等级证书（二级甲等及以上等级证书）。",8,"2500-4000",2,"3000-4500",13,"3000-4000",{"$nulls":4},5,"3000-4000",20,"3000-4000",{"$nulls":8},48,"树立正确的儿童观、教育观，热爱儿童，尊重儿童；具有幼儿园学前教育课程教学和班级管理能力，善于与家长沟通，因材施教；善于与家长沟通，具有良好的职业道德规范。"]
["幼儿教师",{"$f":"VLOOKUP(A8,[1]目录!$B$2:$E$22,4,)","v":1},"全日制大专及以上学历，学前教育专业，35周岁及以下（1987年9月9日及以后出生），身高1.58以上，具有幼儿园教师资格证，普通话考核等级证书（二级乙等及以上等级证书）。",{"$nulls":6},6,"3500-4500",{"$nulls":14},6,"具有幼儿学前教育课程教学和班级管理能力，善于与家长沟通，具有良好的职业道德规范。"]
["幼儿教师",{"$f":"VLOOKUP(A9,[1]目录!$B$2:$E$22,4,)","v":1},"全日制大专及以上学历，学前教育专业，40周岁及以下（1982年9月9日及以后出生），身高1.58以上，具有幼儿园教师资格证、普通话考试等级证书（二级甲等或以上等级证书）。",{"$nulls":14},20,"3000-4500",{"$nulls":4},4,"3500-4500",24,"树立正确的儿童观、教育观，热爱儿童，尊重儿童；具有幼儿园学前教育课程教学和班级管理能力，因材施教；善于与家长沟通，具有良好的职业道德规范。"]
["幼儿教师",{"$f":"VLOOKUP(A10,[1]目录!$B$2:$E$22,4,)","v":1},"全日制大专及以上学历，学前教育专业，40周岁以及下（1982年9月9日及以后出生），身高158cm以上，具有幼儿园教师资格证、普通话考核等级证书（二级乙等或以上等级证书）。",{"$nulls":8},14,"3500-4500",{"$nulls":12},14,"具有幼儿学前教育课程教学和班级管理能力，善于与家长沟通，具有良好的职业道德规范。"]
["体育专业教师",{"$f":"VLOOKUP(A11,[1]目录!$B$2:$E$22,4,)","v":2},"全日制大专及以上学历，40周岁及以下（1982年9月9日及以后出生），具有体育教师资格证书。",{"$nulls":14},1,"3000-4000",{"$nulls":6},1,"热爱工作，具备较高的职业道德；团结协作，甘于奉献，具备服务意识，责任意识；沟通协调能力和较强的应对危机能力，具备体育资格证书。"]
["音乐专业教师",{"$f":"VLOOKUP(A12,[1]目录!$B$2:$E$22,4,)","v":3},"全日制大专及以上学历，40周岁及以下（1982年9月9日及以后出生），具有音乐教师资格证。",{"$nulls":14},1,"3000-4000",{"$nulls":6},1,"树立正确的儿童观、教育观，热爱儿童，尊重儿童。"]
["美术专业教师",{"$f":"VLOOKUP(A13,[1]目录!$B$2:$E$22,4,)","v":4},"全日制大专及以上学历，美术专业，40周岁及以下（1982年9月9日及以后出生），具有美术教师资格证，两年以上幼儿园工作经历。",{"$nulls":14},1,"3000-4000",{"$nulls":6},1,"具有较强的语言沟通能力。"]
["美术专业教师",{"$f":"VLOOKUP(A14,[1]目录!$B$2:$E$22,4,)","v":4},"全日制大专以上学历，美术专业，30周岁及以下（1992年9月9日及以后出生），具有幼儿园教师资格证或美术教师资格证，普通话考核等级证书（二级甲等或以上等级证书）。",{"$nulls":4},1,"3000-4000",{"$nulls":16},1,"具有幼儿学前教育课程教学和班级管理能力，善于与家长沟通，具有良好的职业道德规范。"]
["教学副园长",{"$f":"VLOOKUP(A15,[1]目录!$B$2:$E$22,4,)","v":5},"全日制大专及以上学历，40周岁及以下（1982年9月9日及以后出生），具有幼儿园教师资格证，两年以上幼儿园工作经历。",{"$nulls":14},2,"3000-4000",{"$nulls":6},2,"有较强的组织、计划、控制、协调能力(负责教学工作）。"]
["教务主任",{"$f":"VLOOKUP(A16,[1]目录!$B$2:$E$22,4,)","v":6},"全日制大专及以上学历，40周岁及以下（1982年9月9日及以后出生），具有幼儿园教师资格证，三年及以上幼儿园教学管理工作经历。",{"$nulls":4},1,"3000-4000",{"$nulls":16},1,"具有较强的语言沟通能力、文字撰写能力及协调能力。"]
["教学主任",{"$f":"VLOOKUP(A17,[1]目录!$B$2:$E$22,4,)","v":7},"全日制大专及以上学历，35周岁及以下（1987年9月9日及以后出生），具有幼儿园教师资格证，普通话考核等级证书（二级甲等或以上等级证书），三年以上幼儿园教学管理工作经历。",1,"3000-4000",{"$nulls":20},1,"具有较强的语言沟通能力及文字撰写能力。"]
["中层主任",{"$f":"VLOOKUP(A18,[1]目录!$B$2:$E$22,4,)","v":8},"全日制大专及以上学历，学前教育专业，40周岁及以下（1982年9月9日及以后出生），具有幼儿园教师资格证，普通话考核等级证书（二级甲等及以上等级证书）。",{"$nulls":8},3,"3500-4500",{"$nulls":12},3,"有爱心和责任心，热爱儿童和幼教事业；具有良好的专业素养和较强的安全、责任意识；具有较强的理解力、洞察力、沟通能力；具备引领团队的感染力和感召力；有较强的执行力以及组织实施和反馈能力。负责教学方面的主任需按照《幼儿园教育指导纲要》要求，指导实施幼儿园各项教育教学活动。协助园长组织幼儿园各项大型活动的策划与实施。定期组织业务学习，讨论实际教学活动中遇到的问题，确定解决方法。组织对幼儿园的教育教学质量进行评价，监督教师进行幼儿发展水平的评价与分析；定期组织教学观摩活动，针对问题进行研讨，帮助参加教科研的教师制定课题计划、撰写论文，做好各课题的中期汇报，结题总结、评定活动。"]
["教学干事",{"$f":"VLOOKUP(A19,[1]目录!$B$2:$E$22,4,)","v":9},"全日制大专及以上学历，40周岁及以下（1982年9月9日及以后出生），具有幼儿园教师资格证，两年以上幼儿园工作经历。",{"$nulls":14},1,"3000-4000",{"$nulls":6},1,"具有较强的语言沟通能力（负责艺术领域教学）。"]
["教务干事",{"$f":"VLOOKUP(A20,[1]目录!$B$2:$E$22,4,)","v":10},"全日制大专及以上学历，35周岁及以下（1987年9月9日及以后出生），具有幼儿园教师资格证，三年及以上幼儿园工作经历。",{"$nulls":4},1,"3000-4000",{"$nulls":16},1,"具有较强的语言沟通能力及文字撰写能力。"]
["行政干事",{"$f":"VLOOKUP(A21,[1]目录!$B$2:$E$22,4,)","v":11},"本科及以上学历，学前教育专业，35周岁及以下（1987年9月9日及以后出生），身高1.60以上，具有幼儿园教师资格证、普通话考试等级证书（二级甲等或以上等级证书）。",{"$nulls":8},1,"3500-4500",{"$nulls":12},1,"具有优秀的口头和书面表达能力，较强的分析、解决问题能力，思路清晰，反应敏捷，考虑问题待人接物细致、周到、全面；有良好的敬业精神和职业道德操守，责任意识强烈。"]
["综合干事",{"$f":"VLOOKUP(A22,[1]目录!$B$2:$E$22,4,)","v":12},"全日制大专及以上学历，学前教育专业，35岁以下（1987年9月9日及以后出生），具有幼儿园教师资格证，普通话考核等级证书（二级甲等或以上等级证书），三年以上幼儿园工作经历。",1,"2500-4000",{"$nulls":20},1]
["宣传员",{"$f":"VLOOKUP(A23,[1]目录!$B$2:$E$22,4,)","v":13},"本科及以上学历，女，40周岁及以下（1982年9月9日及以后出生），具有幼儿园教师资格证，普通话考核等级证书（二级甲等及以上等级证书）。",{"$nulls":18},1,"3500-4500",null,null,1,"性格外向，活泼开朗，热爱教育事业，爱岗敬业，具有优秀的口头和书面表达能力及良好的职业道德规范。"]
["人事",{"$f":"VLOOKUP(A24,[1]目录!$B$2:$E$22,4,)","v":14},"本科及以上学历，学前教育专业，35周岁及以下（1987年9月9日及以后出生），身高1.60以上，具有幼儿园教师资格证、普通话考试等级证书（二级甲等或以上等级证书）。",{"$nulls":8},1,"3500-4500",{"$nulls":12},1,"熟练使用办公软件，具有良好的人力资源管理意识和较强的执行能力，优秀的沟通表达及分析与解决问题的能力。"]
["行政干事",15,"全日制大专及以上学历，40周岁及以下（1982年9月9日及以后出生），两年以上工作经验。",{"$nulls":12},1,"3000-4000",{"$nulls":8},1,"能熟练归档收集档案资料及操作办公软件；具备良好的沟通表达能力及一定的抗压能力；有较强的分析问题，解决问题能力及外部联络能力；有亲和力和服务意识，及良好的沟通领悟能力。"]
["人事教辅人员",16,"全日制大专及以上学历，40周岁及以下（1982年9月9日及以后出生）。",{"$nulls":10},2,"3000-4000",1,"3000-4000",{"$nulls":8},3,"具有优秀的口头和书面表达能力、较强的分析力、解决问题能力、思维清晰、反应敏捷，考虑问题待人接物细致、周到、全面；具备良好的政治素养和道德品质，做事严谨；有良好的敬业精神和职业道德操守，责任意识强烈。"]
["网络员",17,"全日制大专及以上学历，计算机专业或影视动画设计专业，35周岁及以下（1987年9月9日及以后出生），具有一年以上的校园网络管理工作经历或影视拍摄制作经历证明。",{"$nulls":4},1,"3000-4000",{"$nulls":16},1,"熟悉计算机维护维修；工作积极，主动，责任心强，具有良好的职业道德规范。热爱后勤工作，具备较高的职业道德；团结协作，甘于奉献，具备服务意识，责任意识；沟通协调能力和较强的应对危机能力。"]
["网络管理员",18,"全日制大专及以上学历，计算机专业或影视动画设计专业，40周岁及以下（1982年9月9日及以后出生），具有一年以上的校园网络管理工作经历或影视拍摄制作经历证明。",{"$nulls":12},1,"3000-4000",2,"3000-4000",{"$nulls":6},3,"熟悉计算机维护维修；工作积极，主动，责任心强，具有良好的职业道德规范。"]
["网络管理员",18,"全日制本科及以上，计算机专业，40周岁及以下（1982年9月9日及以后出生）。",{"$nulls":8},1,"3500-4500",{"$nulls":12},1,"具有丰富网络专业知识和多媒体操作经验，善于团队合作，具有良好的职业道德规范。熟炼使用单反相机和稳定器拍摄视频和照相（交作品），精通后期剪辑、特效，熟练使用PS、PR、AE、AI、CAD等软件"]
["网络管理员",18,"本科及以上学历，30周岁及以下（1992年9月9日及以后出生），男。",{"$nulls":20},1,"3500-4000",1,"具有丰富网络专业知识和多媒体操作经验，善于团队合作，具有良好的职业道德规范。"]
["财务辅助人员",19,"全日制大专及以上学历，会计相关专业毕业，40周岁及以下（1982年9月9日及以后出生），三年以上财务工作经历。",{"$nulls":4},1,"3000-4000",{"$nulls":16},{"$f":"D31+T31+X31+F31+H31+J31+L31+N31+P31+V31+R31","v":1}]
["财务辅助人员",19,"本科及以上学历，40周岁及以下（1982年9月9日及以后出生），具有会计从业资格证或者初级及以上会计专业技术资格证。",{"$nulls":8},1,"3500-4500",{"$nulls":12},1,"具有良好的政治素养和高尚的品德，热爱教育事业，爱岗敬业，廉洁奉公。"]
["财务辅助人员",19,"本科及以上学历，年龄45岁以下（1977年9月9日及以后出生），女，具有中级及以上会计专业技术资格。",{"$nulls":20},1,"3500-4500",1,"具有良好的政治素养和高尚的品德，热爱教育事业，爱岗敬业，廉洁奉公。"]
["保健医",20,"全日制大专及以上学历，40周岁及以下（1982年9月9日及以后出生），具有保健医证或相关医学医护等专业证书，三年以上幼儿园工作经历。",1,"2500-4000",{"$nulls":20},1,"熟悉熟练使用Word、Excel等办公软件，具有幼儿日常护理能力、幼儿意外受伤应急处理能力，善于与家长沟通，具有良好的职业道德规范。"]
["保健员",21,"本科及以上学历，医学、护理学及相关专业，35周岁及以下（1987年9月9日及以后出生），具有护师证或相关医学证件。",{"$nulls":8},1,"3500-4000",{"$nulls":6},1,"3500-4000",{"$nulls":4},2,"身体健康，品德优秀，热爱本职工作，忠于职守；能熟练处理儿童突发疾病和意外事故的技术和能力，能够熟练使用办公软件，具备较好的专业素质和心理素质，喜欢幼儿，有责任心、爱心。"]
["保健员",21,"全日制大专及以上学历，医学、护校及相关专业，35周岁及以下（1987年9月9日及以后出生）。",{"$nulls":4},1,"3000-4000",{"$nulls":6},2,"3000-4000",{"$nulls":8},3,"身体健康，品德优秀，热爱本职工作，忠于职守；能熟练处理儿童突发疾病和意外事故的技术和能力，具备较好的专业素质和心理素质。"]
["保健员",21,"全日制大专及以上学历，医学、护校及相关专业，40周岁及以下（1982年9月9日及以后出生）。",{"$nulls":6},1,"3000-4000",{"$nulls":6},1,"3000-4000",{"$nulls":6},2,"身体健康，品德优秀，热爱本职工作，忠于职守；能熟练处理儿童突发疾病和意外事故的技术和能力，具备较好的专业素质和心理素质。"]
["合计",null,null,{"$f":"SUM(招聘计划信息表!D6:D37)","v":11},null,{"$f":"SUM(招聘计划信息表!F6:F37)","v":2},null,{"$f":"SUM(招聘计划信息表!H6:H37)","v":19},null,{"$f":"SUM(招聘计划信息表!J6:J37)","v":7},null,{"$f":"SUM(招聘计划信息表!L6:L37)","v":22},null,{"$f":"SUM(招聘计划信息表!N6:N37)","v":7},null,{"$f":"SUM(招聘计划信息表!P6:P37)","v":25},null,{"$f":"SUM(招聘计划信息表!R6:R37)","v":29},null,{"$f":"SUM(招聘计划信息表!T6:T37)","v":3},null,{"$f":"SUM(招聘计划信息表!V6:V37)","v":1},null,{"$f":"SUM(招聘计划信息表!X6:X37)","v":6},null,132]